[Event "World Senior chT-65 2019"]
[Site "Rhodes"]
[Date "2019.04.22"]
[Round "7.22"]
[White "Reuben, Stewart"]
[Black "Stebbings, Anthony J"]
[Result "0-1"]
[ECO "A19"]
[WhiteElo "1974"]
[BlackElo "2281"]
[Annotator "NA"]
[PlyCount "114"]
[EventDate "2019.04.16"]
[EventType "team-tourn"]
[EventCountry "GRE"]
[SourceTitle "playchess.com"]
[Source "ChessBase"]
[SourceQuality "1"]
[WhiteTeam "England"]
[BlackTeam "England"]
[WhiteTeamCountry "ENG"]
[BlackTeamCountry "ENG"]
[TimeControl "40/5400+30:1800+30"]

1. c4 {[%emt 0:00:00]} Nf6 {[%emt 0:00:00]} 2. Nc3 {[%emt 0:00:23]} e6 {[%emt 0:00:00]} 3. e4 {[%emt 0:02:16]} c5 {[%emt 0:00:00]} 4. e5 {[%emt 0:02:28]} Ng8 {[%emt 0:00:05]} 5. Nf3 {[%emt 0:06:19]} Nc6 {[%emt 0:00:07]} 6. Bd3 {[%emt 0:03:00]} d6 {[%emt 0:06:08]} 7. exd6 {[%emt 0:17:45]} Qxd6 {[%emt 0:09:53]} 8. Be4 {[%emt 0:01:25]} Nf6 $11 {[%emt 0:03:35]} 9. Bxc6+ {[%emt 0:10:50]} Qxc6 {[%emt 0:02:02]} 10. d4 {[%emt 0:00:21]} cxd4 {[%emt 0:00:52]} 11. Qxd4 {[%emt 0:00:33]} b6 {[%emt 0:13:24]} 12. Bg5 {[%emt 0:06:46]} Be7 {[%emt 0:00:12]} 13. O-O {[%emt 0:03:23]} Bb7 {[%emt 0:00:09]} 14. Rad1 {[%emt 0:02:56]} O-O {[%emt 0:00:26]} 15. b3 {[%emt 0:02:11]} Rfd8 {[%emt 0:04:34]} 16. Qe5 {[%emt 0:03:34]} h6 {[%emt 0:01:58]} 17. Bf4 {[%emt 0:02:30]} Ne8 {[%emt 0:09:24]} 18. Ne2 {[%emt 0:02:51]} Bf6 {[%emt 0:05:41]} 19. Qh5 {[%emt 0:09:36]} Qe4 {[%emt 0:02:45]} 20. Be3 {[%emt 0:00:31]} Rxd1 {[%emt 0:04:37]} 21. Rxd1 {[%emt 0:00:19]} Qc2 {[%emt 0:00:41]} 22. Re1 {[%emt 0:00:45]} Qxa2 {[%emt 0:01:53]} 23. Qb5 {[%emt 0:02:58]} Rd8 {[%emt 0:05:32]} 24. c5 {[%emt 0:02:28]} Nc7 {[%emt 0:03:38]} 25. Qa4 {[%emt 0:02:08]} Qxa4 {[%emt 0:00:12]} 26. bxa4 {[%emt 0:00:08]} Nd5 {[%emt 0:02:57]} 27. cxb6 {[%emt 0:00:29]} axb6 {[%emt 0:06:14]} 28. Rb1 {[%emt 0:01:52]} Nxe3 {[%emt 0:02:39]} 29. fxe3 {[%emt 0:00:10]} Rd6 {[%emt 0:00:59]} 30. Nfd4 {[%emt 0:02:15]} Ba6 {[%emt 0:01:23]} 31. Kf2 {[%emt 0:02:58]} Bd8 {[%emt 0:03:19]} 32. Nc3 {[%emt 0:03:10]} Kf8 {[%emt 0:04:19]} 33. Ncb5 {[%emt 0:01:51]} Rd7 {[%emt 0:02:02]} 34. Ke1 {[%emt 0:01:36]} Ke8 {[%emt 0:00:24]} 35. Rc1 {[%emt 0:02:53]} Bb7 {[%emt 0:01:22]} 36. g3 {[%emt 0:00:16]} g6 {[%emt 0:01:05]} 37. Nc6 {[%emt 0:00:47]} Bc7 {[%emt 0:02:36]} 38. Ncd4 {[%emt 0:01:13]} Be5 {[%emt 0:00:30]} 39. Nc6 {[%emt 0:01:42]} Bd6 {[%emt 0:00:29]} 40. Ke2 {[%emt 0:00:45]} f6 {[%emt 0:04:39]} 41. Rc2 {[%emt 0:08:09]} h5 {[%emt 0:04:06]} 42. Kf2 {[%emt 0:07:44]} e5 {[%emt 0:00:00]} 43. a5 {[%emt 0:05:05]} Bc5 {[%emt 0:00:00]} 44. axb6 {[%emt 0:00:07]} Bxb6 {[%emt 0:00:08]} 45. Nb4 {[%emt 0:00:43]} Ke7 {[%emt 0:02:04]} 46. Na3 {[%emt 0:01:37]} Ke6 {[%emt 0:01:10]} 47. Nc4 {[%emt 0:00:44]} Ba7 {[%emt 0:01:03]} 48. Rd2 {[%emt 0:01:22]} Rxd2+ {[%emt 0:02:37]} 49. Nxd2 {[%emt 0:00:02]} Kf5 {[%emt 0:00:29]} 50. Nd3 {[%emt 0:01:29]} Kg4 {[%emt 0:00:39]} 51. Ne1 {[%emt 0:00:53]} Kh3 {[%emt 0:02:48]} 52. Nef3 {[%emt 0:01:20]} Bxf3 {[%emt 0:04:47]} 53. Nxf3 {[%emt 0:00:22]} e4 {[%emt 0:00:14]} 54. Nh4 {[%emt 0:00:24]} Kxh2 {[%emt 0:02:49]} 55. Nxg6 {[%emt 0:00:28]} Bb8 {[%emt 0:00:06]} 56. Nf4 {[%emt 0:00:45]} Bxf4 {[%emt 0:01:51]} 57. exf4 {[%emt 0:01:58]} f5 {[%emt 0:00:00]} 0-1

[Event "World Senior chT-65 2019"]
[Site "Rhodes"]
[Date "2019.04.22"]
[Round "7.23"]
[White "Snape, Ian L"]
[Black "Valentine, Brian J"]
[Result "1/2-1/2"]
[ECO "A36"]
[WhiteElo "2154"]
[BlackElo "1954"]
[Annotator "NA"]
[PlyCount "82"]
[EventDate "2019.04.16"]
[EventType "team-tourn"]
[EventCountry "GRE"]
[SourceTitle "playchess.com"]
[Source "ChessBase"]
[SourceQuality "1"]
[WhiteTeam "England"]
[BlackTeam "England"]
[WhiteTeamCountry "ENG"]
[BlackTeamCountry "ENG"]
[TimeControl "40/5400+30:1800+30"]

1. c4 {[%emt 0:00:00]} c5 {[%emt 0:00:00]} 2. Nf3 {[%emt 0:00:00]} Nc6 {[%emt 0:00:00]} 3. Nc3 {[%emt 0:00:00]} g6 {[%emt 0:00:00]} 4. g3 {[%emt 0:00:00]} Bg7 {[%emt 0:00:00]} 5. Bg2 {[%emt 0:00:00]} e6 {[%emt 0:00:02]} 6. d4 {[%emt 0:01:08]} Nxd4 {[%emt 0:00:04]} 7. Nxd4 {[%emt 0:00:06]} cxd4 {[%emt 0:00:17]} 8. Nb5 {[%emt 0:00:09]} Ne7 {[%emt 0:01:42]} 9. O-O {[%emt 0:06:07]} Nc6 {[%emt 0:02:45]} 10. e3 {[%emt 0:02:34]} O-O {[%emt 0:03:03]} 11. Nxd4 {[%emt 0:00:50]} Nxd4 {[%emt 0:10:15]} 12. exd4 {[%emt 0:00:07]} d5 {[%emt 0:00:02]} 13. cxd5 {[%emt 0:02:03]} exd5 {[%emt 0:00:02]} 14. Be3 {[%emt 0:00:19]} Be6 {[%emt 0:00:46]} 15. Qb3 {[%emt 0:01:18]} Qd7 {[%emt 0:01:36]} 16. Rfc1 {[%emt 0:03:44]} Rfc8 {[%emt 0:00:02]} 17. a4 {[%emt 0:02:17]} b6 $11 {[%emt 0:12:42]} 18. h4 {[%emt 0:06:45]} h5 {[%emt 0:02:19]} 19. Qb5 {[%emt 0:02:26]} Qd8 {[%emt 0:13:10]} 20. b4 {[%emt 0:11:37]} a5 {[%emt 0:09:39]} 21. Rc6 {[%emt 0:18:47]} Rxc6 {[%emt 0:01:28]} 22. Qxc6 {[%emt 0:00:02]} Rc8 {[%emt 0:00:32]} 23. Qb5 {[%emt 0:01:28]} Rc4 {[%emt 0:02:20]} 24. bxa5 {[%emt 0:00:57]} bxa5 {[%emt 0:00:11]} 25. Bg5 {[%emt 0:07:11]} Qc7 {[%emt 0:06:48]} 26. Bf4 {[%emt 0:08:11]} Qd7 {[%emt 0:02:51]} 27. Be3 {[%emt 0:10:23]} Qxb5 {[%emt 0:04:04]} 28. axb5 {[%emt 0:00:04]} a4 {[%emt 0:00:07]} 29. b6 {[%emt 0:01:03]} Rb4 {[%emt 0:00:19]} 30. b7 {[%emt 0:00:22]} Rxb7 {[%emt 0:00:17]} 31. Rxa4 {[%emt 0:00:07]} Bf6 {[%emt 0:10:50]} 32. Ra5 {[%emt 0:02:03]} Rd7 {[%emt 0:00:34]} 33. Kh2 {[%emt 0:01:27]} Kf8 {[%emt 0:00:10]} 34. Bh3 {[%emt 0:01:37]} Bxh3 {[%emt 0:02:03]} 35. Kxh3 {[%emt 0:00:02]} Ke7 {[%emt 0:00:10]} 36. Kg2 {[%emt 0:01:12]} Ke6 {[%emt 0:00:59]} 37. Kf3 {[%emt 0:00:22]} Kf5 {[%emt 0:00:21]} 38. Rb5 {[%emt 0:03:06]} Bg7 {[%emt 0:01:10]} 39. Ra5 {[%emt 0:01:44]} Bf6 {[%emt 0:00:06]} 40. Ra8 {[%emt 0:00:00]} Bg7 {[%emt 0:00:00]} 41. Ra5 {[%emt 0:04:29] Ke5 [%emt 00:00:21] Ke4+} Bf8 {[%emt 0:00:20]} 1/2-1/2

[Event "World Senior chT-65 2019"]
[Site "Rhodes"]
[Date "2019.04.22"]
[Round "7.24"]
[White "Thynne, Trefor F"]
[Black "Quinn, John M"]
[Result "1/2-1/2"]
[ECO "A48"]
[WhiteElo "1907"]
[BlackElo "2140"]
[Annotator "NA"]
[PlyCount "124"]
[EventDate "2019.04.16"]
[EventType "team-tourn"]
[EventCountry "GRE"]
[SourceTitle "playchess.com"]
[Source "ChessBase"]
[SourceQuality "1"]
[WhiteTeam "England"]
[BlackTeam "England"]
[WhiteTeamCountry "ENG"]
[BlackTeamCountry "ENG"]
[TimeControl "40/5400+30:1800+30"]

1. d4 {[%emt 0:00:00]} Nf6 {[%emt 0:00:00]} 2. Nf3 {[%emt 0:00:00]} g6 {[%emt 0:00:00]} 3. Bf4 {[%emt 0:00:00]} Bg7 {[%emt 0:00:00]} 4. e3 {[%emt 0:00:00]} O-O {[%emt 0:00:10]} 5. h3 {[%emt 0:00:17]} d6 {[%emt 0:00:25]} 6. c3 {[%emt 0:01:27]} Nbd7 {[%emt 0:02:07]} 7. Be2 {[%emt 0:01:30]} c5 {[%emt 0:02:16]} 8. O-O {[%emt 0:01:35]} b6 {[%emt 0:01:38]} 9. Nbd2 {[%emt 0:00:25]} Bb7 {[%emt 0:00:08]} 10. a4 {[%emt 0:02:56]} a6 {[%emt 0:00:32]} 11. Qb3 {[%emt 0:06:12]} Ra7 {[%emt 0:00:50]} 12. Rfd1 {[%emt 0:05:52]} Qa8 {[%emt 0:05:13]} 13. Bh2 {[%emt 0:05:29]} Ne4 {[%emt 0:05:09]} 14. Nxe4 {[%emt 0:09:33]} Bxe4 {[%emt 0:00:07]} 15. Qa2 {[%emt 0:03:34]} Nf6 {[%emt 0:07:47]} 16. Ne1 {[%emt 0:04:56]} Rc7 {[%emt 0:07:10]} 17. f3 {[%emt 0:12:28]} Bb7 {[%emt 0:00:50]} 18. Qb3 {[%emt 0:09:48]} Rfc8 {[%emt 0:10:47]} 19. c4 {[%emt 0:04:43]} cxd4 {[%emt 0:10:40]} 20. exd4 {[%emt 0:00:08]} Nd7 {[%emt 0:00:05]} 21. Qb4 {[%emt 0:11:42]} a5 {[%emt 0:01:25]} 22. Qd2 {[%emt 0:00:43]} Re8 {[%emt 0:11:52]} 23. Ra3 {[%emt 0:04:01]} Qc8 {[%emt 0:00:49]} 24. f4 {[%emt 0:01:07]} Ba6 {[%emt 0:09:20]} 25. b3 {[%emt 0:00:41]} Nf6 {[%emt 0:00:36]} 26. Bf3 {[%emt 0:01:09]} Bb7 {[%emt 0:00:37]} 27. d5 {[%emt 0:00:23]} Rd7 {[%emt 0:02:24]} 28. Ra2 {[%emt 0:01:21]} e6 {[%emt 0:01:48]} 29. dxe6 {[%emt 0:01:13]} Rxe6 {[%emt 0:02:30]} 30. Rc2 {[%emt 0:04:16]} Be4 {[%emt 0:05:34]} 31. Rcc1 {[%emt 0:00:46]} Rde7 {[%emt 0:01:34]} 32. Qf2 {[%emt 0:01:58]} Qc6 {[%emt 0:05:08]} 33. Bg3 {[%emt 0:01:14]} Bxf3 {[%emt 0:02:25]} 34. Qxf3 {[%emt 0:00:36]} Qxf3 {[%emt 0:00:25]} 35. Nxf3 {[%emt 0:00:28]} Ne4 {[%emt 0:00:50]} 36. Bh4 {[%emt 0:00:23]} Re8 {[%emt 0:00:08]} 37. Nd4 {[%emt 0:00:26]} Bxd4+ {[%emt 0:01:00]} 38. Rxd4 {[%emt 0:00:01]} Nc5 {[%emt 0:00:11]} 39. Rcd1 {[%emt 0:01:01]} Nxb3 {[%emt 0:01:18]} 40. Rxd6 {[%emt 0:00:00]} Nc5 {[%emt 0:00:00]} 41. Rxe6 {[%emt 0:14:35]} Rxe6 {[%emt 0:05:24]} 42. Bf2 {[%emt 0:04:31]} Nxa4 {[%emt 0:05:20]} 43. Rd8+ {[%emt 0:02:52]} Kg7 {[%emt 0:00:05]} 44. Bd4+ {[%emt 0:00:48]} f6 {[%emt 0:00:29]} 45. Rd7+ {[%emt 0:00:09]} Kg8 {[%emt 0:00:06]} 46. Rd8+ {[%emt 0:01:09]} Kf7 {[%emt 0:00:12]} 47. Rd7+ {[%emt 0:01:27]} Re7 {[%emt 0:02:44]} 48. Rd6 {[%emt 0:00:15]} Re6 {[%emt 0:02:10]} 49. Rd7+ {[%emt 0:00:09]} Ke8 {[%emt 0:00:06]} 50. Rxh7 {[%emt 0:00:45]} Rd6 {[%emt 0:00:07]} 51. Be3 {[%emt 0:01:13]} Nc3 {[%emt 0:01:18]} 52. Rb7 {[%emt 0:01:07]} a4 {[%emt 0:02:19]} 53. c5 {[%emt 0:03:05]} bxc5 {[%emt 0:01:12]} 54. Bxc5 {[%emt 0:00:08]} Rc6 {[%emt 0:01:30]} 55. Bb4 {[%emt 0:00:41]} Ne2+ {[%emt 0:01:00]} 56. Kh2 {[%emt 0:01:02]} Nxf4 {[%emt 0:00:27]} 57. Re7+ {[%emt 0:03:51]} Kd8 {[%emt 0:00:12]} 58. Re4 {[%emt 0:00:03]} g5 {[%emt 0:00:59]} 59. Ba5+ {[%emt 0:00:20]} Kd7 {[%emt 0:00:22]} 60. Rxa4 {[%emt 0:00:50]} Rc2 {[%emt 0:00:18]} 61. Rd4+ {[%emt 0:00:52]} Ke6 {[%emt 0:00:42]} 62. Rd2 {[%emt 0:00:06]} Ke5 {[%emt 0:04:46]} 1/2-1/2

[Event "World Senior chT-65 2019"]
[Site "Rhodes"]
[Date "2019.04.22"]
[Round "7.25"]
[White "Carlsson, Ingvar"]
[Black "Opl, Klaus"]
[Result "1/2-1/2"]
[ECO "C59"]
[WhiteElo "2119"]
[BlackElo "2188"]
[Annotator "NA"]
[PlyCount "106"]
[EventDate "2019.04.16"]
[EventType "team-tourn"]
[EventCountry "GRE"]
[SourceTitle "playchess.com"]
[Source "ChessBase"]
[SourceQuality "1"]
[WhiteTeam "Sweden"]
[BlackTeam "Austria"]
[WhiteTeamCountry "SWE"]
[BlackTeamCountry "AUT"]
[TimeControl "40/5400+30:1800+30"]

1. e4 {[%emt 0:00:00]} e5 {[%emt 0:00:13]} 2. Nf3 {[%emt 0:00:00]} Nc6 {[%emt 0:00:10]} 3. Bc4 {[%emt 0:00:01]} Nf6 {[%emt 0:00:07]} 4. Ng5 {[%emt 0:00:13]} d5 {[%emt 0:00:08]} 5. exd5 {[%emt 0:00:07]} Na5 {[%emt 0:00:05]} 6. Bb5+ {[%emt 0:00:15]} c6 {[%emt 0:00:01]} 7. dxc6 {[%emt 0:00:20]} bxc6 {[%emt 0:00:11]} 8. Be2 {[%emt 0:00:12]} h6 {[%emt 0:00:36]} 9. Nh3 {[%emt 0:00:09]} Bc5 {[%emt 0:01:02]} 10. d3 {[%emt 0:00:33]} O-O {[%emt 0:00:49]} 11. O-O {[%emt 0:00:51]} Nd5 {[%emt 0:07:45]} 12. c4 {[%emt 0:20:45]} Ne7 {[%emt 0:01:35]} 13. Be3 {[%emt 0:01:14]} Nb7 {[%emt 0:03:57]} 14. Nc3 {[%emt 0:01:44]} Bf5 $11 {[%emt 0:05:23]} 15. Ne4 {[%emt 0:02:51]} Bxe4 {[%emt 0:11:26]} 16. dxe4 {[%emt 0:00:23]} Bxe3 {[%emt 0:00:02]} 17. fxe3 {[%emt 0:00:17]} Qb6 {[%emt 0:00:04]} 18. Qc1 {[%emt 0:02:06]} Nc5 {[%emt 0:02:01]} 19. Nf2 {[%emt 0:00:39]} f5 {[%emt 0:08:26]} 20. exf5 {[%emt 0:01:35]} Rxf5 {[%emt 0:03:05]} 21. Rb1 {[%emt 0:03:04]} a5 {[%emt 0:01:48]} 22. Nd3 {[%emt 0:13:53]} Rd8 {[%emt 0:04:45]} 23. Nxc5 {[%emt 0:08:49]} Rxf1+ {[%emt 0:00:21]} 24. Bxf1 {[%emt 0:01:40]} Qxc5 {[%emt 0:00:02]} 25. Qc3 {[%emt 0:04:49]} Ng6 {[%emt 0:13:34]} 26. a3 {[%emt 0:15:24]} e4 {[%emt 0:05:32]} 27. b4 {[%emt 0:00:29]} axb4 {[%emt 0:00:08]} 28. axb4 {[%emt 0:00:02]} Qg5 {[%emt 0:00:09]} 29. b5 {[%emt 0:07:32]} c5 {[%emt 0:00:02]} 30. b6 {[%emt 0:00:47]} Ne5 {[%emt 0:00:25]} 31. b7 {[%emt 0:00:56]} Rb8 {[%emt 0:00:53]} 32. Kh1 {[%emt 0:03:41]} Qe7 {[%emt 0:06:26]} 33. Qd2 {[%emt 0:05:07]} Nd3 {[%emt 0:03:07]} 34. Bxd3 {[%emt 0:00:37]} Qd7 {[%emt 0:00:11]} 35. Rd1 {[%emt 0:00:18]} exd3 {[%emt 0:00:13]} 36. Qxd3 {[%emt 0:00:13]} Qxd3 {[%emt 0:00:16]} 37. Rxd3 {[%emt 0:00:01]} Rxb7 {[%emt 0:00:02]} 38. h3 {[%emt 0:02:02]} Rb1+ {[%emt 0:00:43]} 39. Kh2 {[%emt 0:00:52]} Rc1 {[%emt 0:00:09]} 40. Rd7 {[%emt 0:00:00]} Rxc4 {[%emt 0:00:00]} 41. Kg3 {[%emt 0:02:49]} Rc1 {[%emt 0:03:20]} 42. Rc7 {[%emt 0:01:04]} c4 {[%emt 0:00:27]} 43. Kf3 {[%emt 0:04:13]} c3 {[%emt 0:01:11]} 44. g4 {[%emt 0:05:09]} c2 {[%emt 0:03:28]} 45. Ke2 {[%emt 0:00:20]} Rh1 {[%emt 0:00:23]} 46. Rxc2 {[%emt 0:00:09]} Rxh3 {[%emt 0:00:07]} 47. Rc8+ {[%emt 0:06:32]} Kf7 {[%emt 0:00:29]} 48. Kf2 {[%emt 0:11:44]} Kf6 {[%emt 0:01:57]} 49. Rc7 {[%emt 0:01:16]} g6 {[%emt 0:00:38]} 50. Rc6+ {[%emt 0:01:01]} Kg5 {[%emt 0:00:29]} 51. Ra6 {[%emt 0:00:48]} Rh4 {[%emt 0:02:14]} 52. Kf3 {[%emt 0:00:09]} Rh3+ {[%emt 0:00:14]} 53. Kf2 {[%emt 0:00:09]} Rh4 {[%emt 0:01:08]} 1/2-1/2

[Event "World Senior chT-65 2019"]
[Site "Rhodes"]
[Date "2019.04.22"]
[Round "7.26"]
[White "Titz, Heimo"]
[Black "Nordstrom, Felix"]
[Result "0-1"]
[ECO "E44"]
[WhiteElo "2096"]
[BlackElo "2044"]
[Annotator "NA"]
[PlyCount "104"]
[EventDate "2019.04.16"]
[EventType "team-tourn"]
[EventCountry "GRE"]
[SourceTitle "playchess.com"]
[Source "ChessBase"]
[SourceQuality "1"]
[WhiteTeam "Austria"]
[BlackTeam "Sweden"]
[WhiteTeamCountry "AUT"]
[BlackTeamCountry "SWE"]
[TimeControl "40/5400+30:1800+30"]

1. c4 {[%emt 0:00:00]} e6 {[%emt 0:00:00]} 2. d4 {[%emt 0:01:50]} Nf6 {[%emt 0:00:14]} 3. Nc3 {[%emt 0:01:26]} Bb4 {[%emt 0:01:12]} 4. e3 {[%emt 0:04:09]} b6 {[%emt 0:02:14]} 5. Nge2 {[%emt 0:01:35]} Ne4 {[%emt 0:02:37]} 6. Qc2 {[%emt 0:02:48]} Bb7 {[%emt 0:00:19]} 7. a3 {[%emt 0:00:44]} Bxc3+ {[%emt 0:01:39]} 8. Nxc3 {[%emt 0:00:12]} Nxc3 {[%emt 0:02:56]} 9. Qxc3 {[%emt 0:04:37]} O-O {[%emt 0:00:29]} 10. b4 {[%emt 0:03:52]} d6 $14 {[%emt 0:06:53]} 11. Bb2 {[%emt 0:00:33]} Nd7 {[%emt 0:03:33]} 12. c5 {[%emt 0:06:04]} Bd5 {[%emt 0:11:06]} 13. Rc1 {[%emt 0:17:31]} f5 {[%emt 0:05:08]} 14. f3 {[%emt 0:13:27]} Qh4+ {[%emt 0:10:28]} 15. Kd2 {[%emt 0:19:07]} Qf2+ {[%emt 0:10:36]} 16. Be2 {[%emt 0:00:07]} Qxg2 {[%emt 0:00:41]} 17. Rcg1 {[%emt 0:01:28]} Qh3 {[%emt 0:03:13]} 18. Rg3 {[%emt 0:01:01]} Qh6 {[%emt 0:00:52]} 19. Rhg1 {[%emt 0:01:59]} Rf7 {[%emt 0:01:21]} 20. Ke1 {[%emt 0:12:58]} Qxh2 {[%emt 0:13:37]} 21. R1g2 {[%emt 0:00:39]} Qh4 {[%emt 0:01:26]} 22. cxd6 {[%emt 0:01:28]} cxd6 {[%emt 0:00:08]} 23. Kf2 {[%emt 0:02:33]} Qe7 {[%emt 0:01:52]} 24. Kg1 {[%emt 0:00:35]} Nf6 {[%emt 0:02:12]} 25. Rh2 {[%emt 0:00:20]} Qb7 {[%emt 0:03:34]} 26. Bd1 {[%emt 0:00:22]} Kf8 {[%emt 0:04:33]} 27. Rc2 {[%emt 0:00:11]} Ne8 {[%emt 0:00:56]} 28. Rh3 {[%emt 0:00:55]} h6 {[%emt 0:01:08]} 29. Qd2 {[%emt 0:00:05]} Rc8 {[%emt 0:00:45]} 30. Rxc8 {[%emt 0:00:07]} Qxc8 {[%emt 0:00:02]} 31. Rh2 {[%emt 0:00:20]} Qb7 {[%emt 0:01:37]} 32. Kf2 {[%emt 0:00:05]} Nf6 {[%emt 0:00:37]} 33. Rh4 {[%emt 0:01:15]} Nh7 {[%emt 0:02:09]} 34. Rh3 {[%emt 0:00:14]} Qe7 {[%emt 0:01:17]} 35. Kg2 {[%emt 0:00:53]} Qb7 {[%emt 0:01:36]} 36. Rg3 {[%emt 0:00:37]} g5 {[%emt 0:01:08]} 37. Kg1 {[%emt 0:00:29]} h5 {[%emt 0:01:32]} 38. Rh3 {[%emt 0:01:18]} g4 {[%emt 0:01:43]} 39. Rxh5 {[%emt 0:00:21]} Bxf3 {[%emt 0:01:13]} 40. Bxf3 {[%emt 0:00:00]} Qxf3 {[%emt 0:00:00]} 41. Qf2 {[%emt 0:00:51]} Qe4 {[%emt 0:08:46]} 42. Bc1 {[%emt 0:04:02]} Qb1 {[%emt 0:05:54]} 43. Qb2 {[%emt 0:01:45]} Qxb2 {[%emt 0:01:15]} 44. Bxb2 {[%emt 0:00:02]} Nf6 {[%emt 0:02:00]} 45. Rh8+ {[%emt 0:01:03]} Ng8 {[%emt 0:05:07]} 46. Bc3 {[%emt 0:03:26]} Rc7 {[%emt 0:00:23]} 47. Be1 {[%emt 0:00:12]} Rc1 {[%emt 0:01:26]} 48. Kf1 {[%emt 0:01:11]} Kg7 {[%emt 0:00:51]} 49. Rh2 {[%emt 0:02:32]} Nf6 {[%emt 0:00:59]} 50. Re2 {[%emt 0:01:52]} Ne4 {[%emt 0:01:02]} 51. Kg2 {[%emt 0:01:15]} Kf7 {[%emt 0:02:34]} 52. Ra2 {[%emt 0:05:16]} Rxe1 {[%emt 0:00:27]} 0-1

[Event "World Senior chT-65 2019"]
[Site "Rhodes"]
[Date "2019.04.22"]
[Round "7.27"]
[White "Grahn, Lars"]
[Black "Strobel, Ferdinand"]
[Result "1/2-1/2"]
[ECO "A80"]
[WhiteElo "1985"]
[BlackElo "1974"]
[Annotator "NA"]
[PlyCount "125"]
[EventDate "2019.04.16"]
[EventType "team-tourn"]
[EventCountry "GRE"]
[SourceTitle "playchess.com"]
[Source "ChessBase"]
[SourceQuality "1"]
[WhiteTeam "Sweden"]
[BlackTeam "Austria"]
[WhiteTeamCountry "SWE"]
[BlackTeamCountry "AUT"]
[TimeControl "40/5400+30:1800+30"]

1. d4 {[%emt 0:00:00]} f5 {[%emt 0:00:00]} 2. Nc3 {[%emt 0:00:00]} Nf6 {[%emt 0:01:13]} 3. Bg5 {[%emt 0:00:08]} d5 {[%emt 0:00:37]} 4. Bxf6 {[%emt 0:00:27]} exf6 {[%emt 0:00:21]} 5. e3 {[%emt 0:00:20]} Be6 {[%emt 0:04:30]} 6. Qf3 {[%emt 0:00:34]} g6 {[%emt 0:04:54]} 7. Bd3 {[%emt 0:01:23]} c6 {[%emt 0:03:47]} 8. Nge2 {[%emt 0:01:47]} Bd6 {[%emt 0:05:12]} 9. h3 {[%emt 0:03:22]} h5 {[%emt 0:13:21]} 10. O-O-O {[%emt 0:22:07]} Rg8 {[%emt 0:21:41]} 11. g3 {[%emt 0:11:13]} Nd7 {[%emt 0:04:47]} 12. Nf4 {[%emt 0:03:08]} Bf7 {[%emt 0:01:16]} 13. g4 {[%emt 0:07:23]} hxg4 {[%emt 0:03:26]} 14. hxg4 {[%emt 0:00:09]} fxg4 {[%emt 0:00:18]} 15. Qxg4 {[%emt 0:00:12]} f5 {[%emt 0:00:55]} 16. Qf3 {[%emt 0:04:32]} Qf6 {[%emt 0:02:12]} 17. Nfe2 {[%emt 0:06:02]} O-O-O {[%emt 0:01:21]} 18. Ng3 {[%emt 0:03:53]} Rh8 {[%emt 0:04:54]} 19. Nce2 {[%emt 0:01:29]} Rxh1 {[%emt 0:02:34]} 20. Rxh1 {[%emt 0:00:15]} Rh8 {[%emt 0:00:56]} 21. a3 {[%emt 0:04:16]} Kc7 {[%emt 0:01:24]} 22. Kb1 {[%emt 0:02:23]} Rh4 {[%emt 0:03:26]} 23. Kc1 {[%emt 0:08:04]} Qg5 {[%emt 0:01:14]} 24. Rxh4 {[%emt 0:01:55]} Qxh4 {[%emt 0:00:27]} 25. Qh1 {[%emt 0:01:09]} Qxh1+ {[%emt 0:01:01]} 26. Nxh1 {[%emt 0:00:02]} Nf6 {[%emt 0:00:39]} 27. f4 {[%emt 0:01:14]} b6 {[%emt 0:01:47]} 28. Nf2 {[%emt 0:03:37]} c5 {[%emt 0:04:02]} 29. c3 {[%emt 0:00:25]} Be7 {[%emt 0:02:05]} 30. Nh3 {[%emt 0:01:50]} Ng4 {[%emt 0:01:44]} 31. Kd2 {[%emt 0:00:17]} Bh4 {[%emt 0:00:46]} 32. Neg1 {[%emt 0:01:33]} c4 {[%emt 0:01:45]} 33. Bc2 {[%emt 0:01:21]} Bg8 {[%emt 0:02:50]} 34. Nf3 {[%emt 0:01:06]} Be7 {[%emt 0:00:45]} 35. Ba4 {[%emt 0:02:27]} Kd8 {[%emt 0:01:42]} 36. Nhg5 {[%emt 0:01:16]} a6 {[%emt 0:00:35]} 37. Nh4 {[%emt 0:01:49]} Bxg5 {[%emt 0:00:26]} 38. fxg5 {[%emt 0:00:02]} Bf7 {[%emt 0:00:20]} 39. Bd1 {[%emt 0:02:34]} Nf2 {[%emt 0:00:20]} 40. Bc2 {[%emt 0:00:00]} Ke7 {[%emt 0:00:00]} 41. Ke2 {[%emt 0:03:36]} Ne4 {[%emt 0:14:04]} 42. Bxe4 {[%emt 0:02:18]} fxe4 {[%emt 0:02:12]} 43. Kf2 {[%emt 0:01:36]} Kd6 {[%emt 0:00:31]} 44. Ng2 {[%emt 0:04:57]} Ke6 {[%emt 0:01:16]} 45. Nh4 {[%emt 0:07:58]} Kd6 {[%emt 0:02:04]} 46. Ke2 {[%emt 0:00:10]} a5 {[%emt 0:03:24]} 47. Kd2 {[%emt 0:00:30]} a4 {[%emt 0:04:25]} 48. Ke2 {[%emt 0:01:15]} Ke6 {[%emt 0:00:59]} 49. Kf2 {[%emt 0:00:07]} Be8 {[%emt 0:00:20]} 50. Kg3 {[%emt 0:00:17]} Bf7 {[%emt 0:01:00]} 51. Kf4 {[%emt 0:00:07]} Kd6 {[%emt 0:00:57]} 52. Ng2 {[%emt 0:00:22]} Be8 {[%emt 0:00:53]} 53. Ne1 {[%emt 0:00:13]} Ke6 {[%emt 0:00:49]} 54. Nc2 {[%emt 0:01:12]} Kd6 {[%emt 0:00:26]} 55. Nb4 {[%emt 0:06:25]} Bb5 {[%emt 0:01:23]} 56. Na2 {[%emt 0:00:09]} Bd7 {[%emt 0:00:25]} 57. Nc1 {[%emt 0:00:08]} Be6 {[%emt 0:01:19]} 58. Ne2 {[%emt 0:00:08]} Bf7 {[%emt 0:00:20]} 59. Ng3 {[%emt 0:00:09]} Be6 {[%emt 0:00:31]} 60. Nh1 {[%emt 0:01:14]} Bd7 {[%emt 0:00:30]} 61. Nf2 {[%emt 0:00:24]} Be6 {[%emt 0:00:20]} 62. Ng4 {[%emt 0:00:35]} Bxg4 {[%emt 0:00:12]} 63. Kxg4 {[%emt 0:00:02]} 1/2-1/2